[Event "*** Titled Tuesday Blitz"]
[Site "Chess.com"]
[Date "2019.11.05"]
[Round "3"]
[White "Lestofante90"]
[Black "kleinebeer98"]
[Result "1/2-1/2"]
[WhiteElo "2855"]
[BlackElo "2684"]
[TimeControl "180+2"]
[EndTime "13:42:59 PST"]
[Termination "Game drawn by repetition"]

1. Nf3 {[%clk 0:03:01.9]} 1... Nf6 {[%clk 0:02:59]} 2. c4 {[%clk 0:02:57.9]}
2... c5 {[%clk 0:02:55.5]} 3. Nc3 {[%clk 0:02:56.2]} 3... Nc6 {[%clk 0:02:52.9]}
4. e3 {[%clk 0:02:55]} 4... g6 {[%clk 0:02:51.6]} 5. d4 {[%clk 0:02:53.6]} 5...
cxd4 {[%clk 0:02:53.5]} 6. exd4 {[%clk 0:02:55]} 6... d5 {[%clk 0:02:55.2]} 7.
cxd5 {[%clk 0:02:56.4]} 7... Nxd5 {[%clk 0:02:57.1]} 8. Qb3 {[%clk 0:02:57.5]}
8... e6 {[%clk 0:02:54.4]} 9. Bb5 {[%clk 0:02:37.3]} 9... Bg7 {[%clk 0:02:52.9]}
10. Bg5 {[%clk 0:02:35.5]} 10... Qa5 {[%clk 0:02:46.7]} 11. Bd2 {[%clk
0:02:30.7]} 11... Qd8 {[%clk 0:02:42.2]} 12. O-O {[%clk 0:02:27.4]} 12... O-O
{[%clk 0:02:40.7]} 13. Bxc6 {[%clk 0:02:28.2]} 13... bxc6 {[%clk 0:02:41.1]} 14.
Ne4 {[%clk 0:02:29.6]} 14... Qb6 {[%clk 0:02:36.9]} 15. Qa3 {[%clk 0:02:17.7]}
15... a5 {[%clk 0:02:30.8]} 16. Rac1 {[%clk 0:02:13.9]} 16... Rd8 {[%clk
0:02:25]} 17. Ne5 {[%clk 0:01:57.5]} 17... Qxd4 {[%clk 0:02:07.8]} 18. Nxc6
{[%clk 0:01:56.4]} 18... Qxe4 {[%clk 0:02:08]} 19. Nxd8 {[%clk 0:01:57.3]} 19...
Bf6 {[%clk 0:01:36]} 20. Qd6 {[%clk 0:01:05.6]} 20... Ba6 {[%clk 0:01:01]} 21.
Rfe1 {[%clk 0:00:59.1]} 21... Qf5 {[%clk 0:00:49.4]} 22. Qc6 {[%clk 0:00:52.4]}
22... Rxd8 {[%clk 0:00:43.6]} 23. Qxa6 {[%clk 0:00:52.1]} 23... Bd4 {[%clk
0:00:42.6]} 24. Qe2 {[%clk 0:00:47]} 24... Bxb2 {[%clk 0:00:42.1]} 25. Bxa5
{[%clk 0:00:41.6]} 25... Bxc1 {[%clk 0:00:37]} 26. Bxd8 {[%clk 0:00:41.8]} 26...
Ba3 {[%clk 0:00:32.9]} 27. Qe4 {[%clk 0:00:34.6]} 27... Qh5 {[%clk 0:00:28.1]}
28. Qc4 {[%clk 0:00:31.9]} 28... Bb4 {[%clk 0:00:25.8]} 29. Rb1 {[%clk
0:00:28.2]} 29... Bf8 {[%clk 0:00:20.8]} 30. a4 {[%clk 0:00:26.7]} 30... Qf5
{[%clk 0:00:20.5]} 31. Rd1 {[%clk 0:00:22.5]} 31... Nf4 {[%clk 0:00:19.2]} 32.
h3 {[%clk 0:00:21.6]} 32... Qe5 {[%clk 0:00:15.1]} 33. Bb6 {[%clk 0:00:19.6]}
33... Bd6 {[%clk 0:00:11.1]} 34. Kf1 {[%clk 0:00:17.9]} 34... Nd5 {[%clk
0:00:10.7]} 35. Bd4 {[%clk 0:00:16.4]} 35... Qh5 {[%clk 0:00:07.4]} 36. Rc1
{[%clk 0:00:10.2]} 36... Bf8 {[%clk 0:00:05.5]} 37. Bc5 {[%clk 0:00:08.8]} 37...
Nf4 {[%clk 0:00:04.4]} 38. Qxf4 {[%clk 0:00:07.2]} 38... Bxc5 {[%clk 0:00:04.8]}
39. Qb8+ {[%clk 0:00:08.2]} 39... Bf8 {[%clk 0:00:06.3]} 40. Qb5 {[%clk
0:00:07.4]} 40... Qh6 {[%clk 0:00:06.8]} 41. Rb1 {[%clk 0:00:07.9]} 41... Qf4
{[%clk 0:00:06.9]} 42. Kg1 {[%clk 0:00:06.2]} 42... Bd6 {[%clk 0:00:06.1]} 43.
g3 {[%clk 0:00:07.5]} 43... Qe4 {[%clk 0:00:07.5]} 44. a5 {[%clk 0:00:07.1]}
44... Bc5 {[%clk 0:00:08.8]} 45. a6 {[%clk 0:00:03.4]} 45... Qf5 {[%clk
0:00:10]} 46. Qb8+ {[%clk 0:00:03.6]} 46... Kg7 {[%clk 0:00:10.7]} 47. Qb2+
{[%clk 0:00:05]} 47... e5 {[%clk 0:00:10.6]} 48. Rc1 {[%clk 0:00:05.8]} 48...
Bd4 {[%clk 0:00:11.3]} 49. Qe2 {[%clk 0:00:07.1]} 49... Qg5 {[%clk 0:00:11.6]}
50. Rc2 {[%clk 0:00:03]} 50... Qxg3+ {[%clk 0:00:12.8]} 51. Kf1 {[%clk
0:00:04.5]} 51... Qxh3+ {[%clk 0:00:14.7]} 52. Ke1 {[%clk 0:00:05.8]} 52... Bc3+
{[%clk 0:00:13.8]} 53. Rxc3 {[%clk 0:00:07]} 53... Qxc3+ {[%clk 0:00:15.7]} 54.
Kf1 {[%clk 0:00:08.3]} 54... Qa1+ {[%clk 0:00:15.9]} 55. Kg2 {[%clk 0:00:08.9]}
55... h5 {[%clk 0:00:17.3]} 56. Qb5 {[%clk 0:00:09.1]} 56... Qd4 {[%clk
0:00:16]} 57. Qb7 {[%clk 0:00:09.3]} 57... Qg4+ {[%clk 0:00:16.6]} 58. Kf1
{[%clk 0:00:10.5]} 58... Qd1+ {[%clk 0:00:16.8]} 59. Kg2 {[%clk 0:00:11.9]}
59... Qg4+ {[%clk 0:00:18.7]} 60. Kh2 {[%clk 0:00:13.1]} 60... Qf4+ {[%clk
0:00:18.4]} 61. Kg1 {[%clk 0:00:13.7]} 61... Qc1+ {[%clk 0:00:18.6]} 62. Kg2
{[%clk 0:00:14.7]} 62... Qg5+ {[%clk 0:00:19.9]} 63. Kf1 {[%clk 0:00:11]} 63...
Qc1+ {[%clk 0:00:20.4]} 64. Ke2 {[%clk 0:00:12.4]} 64... Qc4+ {[%clk 0:00:20.9]}
65. Kd2 {[%clk 0:00:08.8]} 65... Qa2+ {[%clk 0:00:21.6]} 66. Kc3 {[%clk
0:00:09.1]} 66... Qa3+ {[%clk 0:00:21.3]} 67. Kc4 {[%clk 0:00:09.4]} 67... Qa4+
{[%clk 0:00:22.5]} 68. Kd5 {[%clk 0:00:10.2]} 68... Qd4+ {[%clk 0:00:20.8]} 69.
Kc6 {[%clk 0:00:11.4]} 69... Qc4+ {[%clk 0:00:20.6]} 70. Kd7 {[%clk 0:00:12.1]}
70... Qd4+ {[%clk 0:00:20.5]} 71. Kc8 {[%clk 0:00:10.2]} 71... Qc5+ {[%clk
0:00:18.6]} 72. Qc7 {[%clk 0:00:09.4]} 72... Qf8+ {[%clk 0:00:19.6]} 73. Kd7
{[%clk 0:00:07.5]} 73... h4 {[%clk 0:00:16.3]} 74. a7 {[%clk 0:00:06]} 74... Qa8
{[%clk 0:00:16.1]} 75. Qxe5+ {[%clk 0:00:05.3]} 75... f6 {[%clk 0:00:16.1]} 76.
Qe7+ {[%clk 0:00:05]} 76... Kh6 {[%clk 0:00:17.4]} 77. Ke6 {[%clk 0:00:06.3]}
77... Qe4+ {[%clk 0:00:18.2]} 78. Kf7 {[%clk 0:00:07.6]} 78... Qc4+ {[%clk
0:00:18.3]} 79. Kxf6 {[%clk 0:00:05.7]} 79... Qd4+ {[%clk 0:00:10.5]} 80. Ke6
{[%clk 0:00:04.7]} 80... Qe4+ {[%clk 0:00:09.8]} 81. Kd7 {[%clk 0:00:04.3]}
81... Qb7+ {[%clk 0:00:10.9]} 82. Ke8 {[%clk 0:00:05.3]} 82... Qa8+ {[%clk
0:00:10.6]} 83. Kf7 {[%clk 0:00:05.6]} 83... Qd5+ {[%clk 0:00:11.6]} 84. Kf8
{[%clk 0:00:06.3]} 84... Qa8+ {[%clk 0:00:11.9]} 85. Kf7 {[%clk 0:00:07.1]}
85... Qd5+ {[%clk 0:00:12.5]} 86. Qe6 {[%clk 0:00:06.7]} 86... Qb7+ {[%clk
0:00:13.1]} 87. Qe7 {[%clk 0:00:02.9]} 87... Qb3+ {[%clk 0:00:13.7]} 88. Ke8
{[%clk 0:00:02.7]} 88... Qa4+ {[%clk 0:00:13.7]} 89. Qd7 {[%clk 0:00:03.5]}
89... Qe4+ {[%clk 0:00:14.1]} 90. Kd8 {[%clk 0:00:04.6]} 90... Qa8+ {[%clk
0:00:15.5]} 91. Ke7 {[%clk 0:00:05.9]} 91... Qe4+ {[%clk 0:00:16.9]} 92. Kd6
{[%clk 0:00:07.3]} 92... Qd4+ {[%clk 0:00:17.5]} 93. Ke6 {[%clk 0:00:08.2]}
93... Qe4+ {[%clk 0:00:18.1]} 94. Kf7 {[%clk 0:00:08.8]} 94... Qc4+ {[%clk
0:00:16.5]} 95. Ke7 {[%clk 0:00:06.3]} 95... Qe4+ {[%clk 0:00:15.1]} 96. Qe6
{[%clk 0:00:05.6]} 96... Qb7+ {[%clk 0:00:15.7]} 97. Qd7 {[%clk 0:00:05.3]}
97... Qe4+ {[%clk 0:00:17]} 1/2-1/2

[Event "*** Titled Tuesday Blitz"]
[Site "Chess.com"]
[Date "2019.11.05"]
[Round "3"]
[White "Sajkochess"]
[Black "sofaceindisguise"]
[Result "1/2-1/2"]
[WhiteElo "2335"]
[BlackElo "2592"]
[TimeControl "180+2"]
[EndTime "13:43:32 PST"]
[Termination "Game drawn - insufficient material"]

1. e4 {[%clk 0:03:01.9]} 1... c5 {[%clk 0:02:57.8]} 2. Nf3 {[%clk 0:03:02]} 2...
d6 {[%clk 0:02:58.3]} 3. d4 {[%clk 0:03:03.3]} 3... cxd4 {[%clk 0:03:00.2]} 4.
Nxd4 {[%clk 0:03:05.2]} 4... Nf6 {[%clk 0:03:01.2]} 5. Nc3 {[%clk 0:03:06.7]}
5... a6 {[%clk 0:03:02.8]} 6. g3 {[%clk 0:03:07.6]} 6... e5 {[%clk 0:03:00.3]}
7. Nde2 {[%clk 0:03:08.9]} 7... Be7 {[%clk 0:03:00.9]} 8. Bg2 {[%clk 0:03:10.2]}
8... O-O {[%clk 0:03:02.4]} 9. O-O {[%clk 0:03:09]} 9... b5 {[%clk 0:03:03.9]}
10. Nd5 {[%clk 0:03:09.3]} 10... Bb7 {[%clk 0:03:04.5]} 11. Nec3 {[%clk
0:03:09.2]} 11... Nbd7 {[%clk 0:03:05.1]} 12. Be3 {[%clk 0:03:08.7]} 12... Rc8
{[%clk 0:03:05.4]} 13. Rc1 {[%clk 0:02:55.3]} 13... h6 {[%clk 0:02:52.3]} 14. h3
{[%clk 0:02:51.7]} 14... Re8 {[%clk 0:02:49.5]} 15. Qd2 {[%clk 0:02:44.4]} 15...
Bf8 {[%clk 0:02:49.3]} 16. Rfd1 {[%clk 0:02:41.7]} 16... Nc5 {[%clk 0:02:25.6]}
17. f3 {[%clk 0:02:31.1]} 17... Nfd7 {[%clk 0:02:19.5]} 18. h4 {[%clk
0:02:26.1]} 18... Ne6 {[%clk 0:02:10]} 19. Bh3 {[%clk 0:02:23.3]} 19... Rc4
{[%clk 0:02:03.4]} 20. b3 {[%clk 0:02:12.4]} 20... Rc8 {[%clk 0:01:56.2]} 21.
Ne2 {[%clk 0:02:08.4]} 21... Nf6 {[%clk 0:01:35.7]} 22. Bb6 {[%clk 0:01:57.6]}
22... Qd7 {[%clk 0:01:24]} 23. Nxf6+ {[%clk 0:01:47.3]} 23... gxf6 {[%clk
0:01:25.9]} 24. Be3 {[%clk 0:01:45.8]} 24... h5 {[%clk 0:01:15.7]} 25. Nc3
{[%clk 0:01:38.3]} 25... Qc7 {[%clk 0:01:04.1]} 26. Nd5 {[%clk 0:01:34.2]} 26...
Bxd5 {[%clk 0:01:05.1]} 27. exd5 {[%clk 0:01:35]} 27... Nd4 {[%clk 0:01:05.1]}
28. Bxd4 {[%clk 0:01:20.5]} 28... exd4 {[%clk 0:01:06.2]} 29. Bxc8 {[%clk
0:01:18.1]} 29... Qxc8 {[%clk 0:01:08.1]} 30. Qxd4 {[%clk 0:01:17.3]} 30... Qh3
{[%clk 0:01:07.1]} 31. Qf2 {[%clk 0:01:11.6]} 31... Bh6 {[%clk 0:01:07.1]} 32.
Re1 {[%clk 0:01:12.3]} 32... Rc8 {[%clk 0:01:00.9]} 33. Rcd1 {[%clk 0:01:07]}
33... Bg7 {[%clk 0:00:53.9]} 34. Re2 {[%clk 0:00:56.1]} 34... Qf5 {[%clk
0:00:49.1]} 35. Rde1 {[%clk 0:00:34.4]} 35... Kh7 {[%clk 0:00:48.9]} 36. Qd4
{[%clk 0:00:26]} 36... Qg6 {[%clk 0:00:43.7]} 37. Kh2 {[%clk 0:00:13.4]} 37...
f5 {[%clk 0:00:44.5]} 38. Qd3 {[%clk 0:00:09.3]} 38... Rc3 {[%clk 0:00:44.3]}
39. Qd2 {[%clk 0:00:07.1]} 39... Rxf3 {[%clk 0:00:45.1]} 40. Qg5 {[%clk
0:00:08.1]} 40... Be5 {[%clk 0:00:30.5]} 41. Qxg6+ {[%clk 0:00:07.9]} 41... Kxg6
{[%clk 0:00:30.7]} 42. Rxe5 {[%clk 0:00:08.9]} 42... dxe5 {[%clk 0:00:31.9]} 43.
Rd1 {[%clk 0:00:09.1]} 43... Rf2+ {[%clk 0:00:31]} 44. Kg1 {[%clk 0:00:09.8]}
44... Rxc2 {[%clk 0:00:32.3]} 45. d6 {[%clk 0:00:11.1]} 45... Rc8 {[%clk
0:00:33.8]} 46. d7 {[%clk 0:00:12.4]} 46... Rd8 {[%clk 0:00:35.3]} 47. Rd6+
{[%clk 0:00:12.8]} 47... f6 {[%clk 0:00:36.7]} 48. Kf2 {[%clk 0:00:12.8]} 48...
Kf7 {[%clk 0:00:36.8]} 49. a4 {[%clk 0:00:13.4]} 49... bxa4 {[%clk 0:00:37.5]}
50. bxa4 {[%clk 0:00:14.6]} 50... a5 {[%clk 0:00:39.1]} 51. Rd5 {[%clk 0:00:12]}
51... Ke6 {[%clk 0:00:39.9]} 52. Rxa5 {[%clk 0:00:12.9]} 52... Rxd7 {[%clk
0:00:41.5]} 53. Ra6+ {[%clk 0:00:14]} 53... Kf7 {[%clk 0:00:42.5]} 54. Ke3
{[%clk 0:00:13.8]} 54... Rb7 {[%clk 0:00:41.6]} 55. a5 {[%clk 0:00:14.4]} 55...
Rb3+ {[%clk 0:00:42.8]} 56. Kf2 {[%clk 0:00:15.4]} 56... Ra3 {[%clk 0:00:40.8]}
57. Ra7+ {[%clk 0:00:15.3]} 57... Ke6 {[%clk 0:00:42.3]} 58. Ra6+ {[%clk
0:00:13.6]} 58... Kf7 {[%clk 0:00:36.2]} 59. Ra7+ {[%clk 0:00:14.6]} 59... Kg6
{[%clk 0:00:37.1]} 60. a6 {[%clk 0:00:13]} 60... f4 {[%clk 0:00:35.7]} 61. gxf4
{[%clk 0:00:12.2]} 61... exf4 {[%clk 0:00:37.6]} 62. Ra8 {[%clk 0:00:10]} 62...
Kf5 {[%clk 0:00:38.7]} 63. a7 {[%clk 0:00:09.4]} 63... f3 {[%clk 0:00:40]} 64.
Rh8 {[%clk 0:00:09.2]} 64... Rxa7 {[%clk 0:00:40.8]} 65. Kxf3 {[%clk 0:00:08.9]}
65... Ra3+ {[%clk 0:00:41.1]} 66. Kg2 {[%clk 0:00:08.3]} 66... Kg4 {[%clk
0:00:42.1]} 67. Rf8 {[%clk 0:00:03.6]} 67... Ra6 {[%clk 0:00:40.1]} 68. Rg8+
{[%clk 0:00:04.3]} 68... Kxh4 {[%clk 0:00:39.8]} 69. Rb8 {[%clk 0:00:05.8]}
69... Ra4 {[%clk 0:00:36.2]} 70. Kf3 {[%clk 0:00:06.4]} 70... Rg4 {[%clk
0:00:33.6]} 71. Rb6 {[%clk 0:00:05.8]} 71... Kg5 {[%clk 0:00:33.5]} 72. Rb5+
{[%clk 0:00:06.6]} 72... f5 {[%clk 0:00:34.3]} 73. Rb7 {[%clk 0:00:07.7]} 73...
Rf4+ {[%clk 0:00:35.5]} 74. Kg3 {[%clk 0:00:07.8]} 74... h4+ {[%clk 0:00:36.3]}
75. Kg2 {[%clk 0:00:09.1]} 75... Ra4 {[%clk 0:00:35.6]} 76. Kf3 {[%clk 0:00:09]}
76... Ra3+ {[%clk 0:00:36.3]} 77. Kf2 {[%clk 0:00:09.8]} 77... Kg4 {[%clk
0:00:37.4]} 78. Rg7+ {[%clk 0:00:09.8]} 78... Kf4 {[%clk 0:00:38.8]} 79. Rb7
{[%clk 0:00:10.6]} 79... Ra2+ {[%clk 0:00:38.5]} 80. Kg1 {[%clk 0:00:11.8]}
80... h3 {[%clk 0:00:37]} 81. Rb4+ {[%clk 0:00:11.3]} 81... Kg3 {[%clk
0:00:37.2]} 82. Rb3+ {[%clk 0:00:12.1]} 82... Kg4 {[%clk 0:00:38.6]} 83. Rb8
{[%clk 0:00:11.8]} 83... f4 {[%clk 0:00:40]} 84. Rb3 {[%clk 0:00:11.7]} 84...
Re2 {[%clk 0:00:38.9]} 85. Ra3 {[%clk 0:00:05.4]} 85... Re3 {[%clk 0:00:39.6]}
86. Ra8 {[%clk 0:00:05.6]} 86... Kf3 {[%clk 0:00:40.5]} 87. Ra1 {[%clk
0:00:05.9]} 87... Rb3 {[%clk 0:00:40.4]} 88. Kh2 {[%clk 0:00:05.4]} 88... Ke2
{[%clk 0:00:32.8]} 89. Ra2+ {[%clk 0:00:04.2]} 89... Ke3 {[%clk 0:00:24.9]} 90.
Kxh3 {[%clk 0:00:04.8]} 90... f3 {[%clk 0:00:24]} 91. Kg3 {[%clk 0:00:05.6]}
91... Rc3 {[%clk 0:00:19.5]} 92. Rb2 {[%clk 0:00:05.9]} 92... Rd3 {[%clk
0:00:19.4]} 93. Ra2 {[%clk 0:00:06.7]} 93... Rb3 {[%clk 0:00:14.7]} 94. Rf2
{[%clk 0:00:06.3]} 94... Ke4 {[%clk 0:00:15.1]} 95. Rc2 {[%clk 0:00:05.2]} 95...
Rb8 {[%clk 0:00:12.5]} 96. Rc4+ {[%clk 0:00:05]} 96... Kd3 {[%clk 0:00:13.5]}
97. Rf4 {[%clk 0:00:05.6]} 97... Ke2 {[%clk 0:00:13.7]} 98. Re4+ {[%clk
0:00:03.9]} 98... Kd3 {[%clk 0:00:15]} 99. Kxf3 {[%clk 0:00:04.3]} 99... Rf8+
{[%clk 0:00:16.5]} 100. Rf4 {[%clk 0:00:05.4]} 100... Rxf4+ {[%clk 0:00:18.4]}
101. Kxf4 {[%clk 0:00:07.3]} 1/2-1/2

[Event "*** Titled Tuesday Blitz"]
[Site "Chess.com"]
[Date "2019.11.05"]
[Round "4"]
[White "zim0ne"]
[Black "Orest_Vovk"]
[Result "1-0"]
[WhiteElo "2629"]
[BlackElo "2419"]
[TimeControl "180+2"]
[EndTime "13:46:52 PST"]
[Termination "zim0ne won by resignation"]

1. Nf3 {[%clk 0:03:01.1]} 1... d5 {[%clk 0:02:55.4]} 2. c4 {[%clk 0:03:00.9]}
2... c6 {[%clk 0:02:54]} 3. g3 {[%clk 0:03:01.6]} 3... Bf5 {[%clk 0:02:53.2]} 4.
Bg2 {[%clk 0:02:56.5]} 4... Bxb1 {[%clk 0:02:52.9]} 5. Rxb1 {[%clk 0:02:56.5]}
5... e6 {[%clk 0:02:50.2]} 6. b3 {[%clk 0:02:56.9]} 6... Nf6 {[%clk 0:02:47.5]}
7. O-O {[%clk 0:02:57.4]} 7... Be7 {[%clk 0:02:48.3]} 8. Bb2 {[%clk 0:02:56.5]}
8... O-O {[%clk 0:02:49.2]} 9. d3 {[%clk 0:02:55.7]} 9... Nbd7 {[%clk
0:02:50.1]} 10. e4 {[%clk 0:02:56.6]} 10... dxe4 {[%clk 0:02:49.9]} 11. dxe4
{[%clk 0:02:57.8]} 11... Nc5 {[%clk 0:02:51.1]} 12. e5 {[%clk 0:02:56.5]} 12...
Nfe4 {[%clk 0:02:39.7]} 13. Nd4 {[%clk 0:02:51.2]} 13... f5 {[%clk 0:02:12.1]}
14. b4 {[%clk 0:02:40.3]} 14... Na4 {[%clk 0:02:02.2]} 15. Qxa4 {[%clk
0:02:39.6]} 15... Nd2 {[%clk 0:01:59]} 16. Nxe6 {[%clk 0:02:37.7]} 1-0

[Event "*** Titled Tuesday Blitz"]
[Site "Chess.com"]
[Date "2019.11.05"]
[Round "4"]
[White "IvanRadivojevic"]
[Black "Bagirova"]
[Result "1-0"]
[WhiteElo "2469"]
[BlackElo "2105"]
[TimeControl "180+2"]
[EndTime "13:47:00 PST"]
[Termination "IvanRadivojevic won by resignation"]

1. e4 {[%clk 0:03:01.9]} 1... c5 {[%clk 0:02:59.4]} 2. Nc3 {[%clk 0:03:01]} 2...
Nc6 {[%clk 0:03:00.2]} 3. f4 {[%clk 0:03:02.3]} 3... g6 {[%clk 0:03:01.1]} 4.
Nf3 {[%clk 0:03:03.8]} 4... Bg7 {[%clk 0:03:02.6]} 5. Bb5 {[%clk 0:03:05.3]}
5... d6 {[%clk 0:03:03.4]} 6. Bxc6+ {[%clk 0:03:05.2]} 6... bxc6 {[%clk
0:03:04.2]} 7. d3 {[%clk 0:03:06.7]} 7... e5 {[%clk 0:03:01.4]} 8. O-O {[%clk
0:03:06.7]} 8... Nf6 {[%clk 0:03:00.2]} 9. fxe5 {[%clk 0:03:04.1]} 9... dxe5
{[%clk 0:03:01]} 10. b3 {[%clk 0:03:00.6]} 10... Qd4+ {[%clk 0:02:58.6]} 11.
Nxd4 {[%clk 0:03:00.7]} 11... cxd4 {[%clk 0:02:56.5]} 12. Ne2 {[%clk 0:02:59]}
12... O-O {[%clk 0:02:50.8]} 13. Bg5 {[%clk 0:02:59.1]} 13... Ng4 {[%clk
0:02:50.7]} 14. h3 {[%clk 0:02:56.4]} 14... Ne3 {[%clk 0:02:48.6]} 15. Bxe3
{[%clk 0:02:56.9]} 15... dxe3 {[%clk 0:02:49.9]} 16. Qc1 {[%clk 0:02:57.8]}
16... Bh6 {[%clk 0:02:49.8]} 17. Qe1 {[%clk 0:02:44.3]} 17... f5 {[%clk
0:02:49.9]} 18. exf5 {[%clk 0:02:43.3]} 18... Bxf5 {[%clk 0:02:47.6]} 19. Ng3
{[%clk 0:02:41.4]} 19... Be6 {[%clk 0:02:43.3]} 20. Qe2 {[%clk 0:02:40.2]} 20...
Bd5 {[%clk 0:02:38.9]} 21. Rxf8+ {[%clk 0:02:39]} 21... Rxf8 {[%clk 0:02:40.3]}
22. Rf1 {[%clk 0:02:40.3]} 22... Bf4 {[%clk 0:02:41.7]} 23. Ne4 {[%clk
0:02:34.1]} 23... Kg7 {[%clk 0:02:30.9]} 24. g3 {[%clk 0:02:32.5]} 1-0

[Event "*** Titled Tuesday Blitz"]
[Site "Chess.com"]
[Date "2019.11.05"]
[Round "4"]
[White "CzechmVIII"]
[Black "MathiasWomacka"]
[Result "0-1"]
[WhiteElo "2096"]
[BlackElo "2304"]
[TimeControl "180+2"]
[EndTime "13:47:01 PST"]
[Termination "MathiasWomacka won by resignation"]

1. e4 {[%clk 0:03:01.9]} 1... c5 {[%clk 0:03:00.8]} 2. Nf3 {[%clk 0:03:01.9]}
2... d6 {[%clk 0:03:01.9]} 3. d4 {[%clk 0:03:02.6]} 3... cxd4 {[%clk 0:03:03.8]}
4. Nxd4 {[%clk 0:03:03.9]} 4... Nf6 {[%clk 0:03:04.9]} 5. Nc3 {[%clk 0:03:05.1]}
5... a6 {[%clk 0:03:06.3]} 6. Bg5 {[%clk 0:03:06.2]} 6... e6 {[%clk 0:03:07.4]}
7. f4 {[%clk 0:03:07.1]} 7... h6 {[%clk 0:03:08.7]} 8. Bh4 {[%clk 0:03:01.7]}
8... Qb6 {[%clk 0:03:09.3]} 9. Bxf6 {[%clk 0:02:52.8]} 9... gxf6 {[%clk
0:03:08.6]} 10. Qd2 {[%clk 0:02:53.6]} 10... Qxb2 {[%clk 0:03:09.4]} 11. Nb3
{[%clk 0:02:54.7]} 11... Nd7 {[%clk 0:03:06.9]} 12. Be2 {[%clk 0:02:35.8]} 12...
Nc5 {[%clk 0:03:07.7]} 13. O-O {[%clk 0:02:22.4]} 13... Bd7 {[%clk 0:03:08.6]}
14. Nxc5 {[%clk 0:01:55.3]} 14... Qb6 {[%clk 0:03:08.5]} 15. Kh1 {[%clk
0:01:31.8]} 15... Qxc5 {[%clk 0:03:09.4]} 16. Rab1 {[%clk 0:01:30.3]} 16... Rc8
{[%clk 0:03:08.5]} 17. Rf3 {[%clk 0:01:21.2]} 17... b5 {[%clk 0:03:08.3]} 18.
Bd3 {[%clk 0:01:06.7]} 18... Qxc3 {[%clk 0:03:06]} 0-1

[Event "*** Titled Tuesday Blitz"]
[Site "Chess.com"]
[Date "2019.11.05"]
[Round "4"]
[White "liczner"]
[Black "semchik73"]
[Result "1-0"]
[WhiteElo "2793"]
[BlackElo "2392"]
[TimeControl "180+2"]
[EndTime "13:47:19 PST"]
[Termination "liczner won by resignation"]

1. e4 {[%clk 0:03:01.9]} 1... Nf6 {[%clk 0:03:00.4]} 2. e5 {[%clk 0:03:02.9]}
2... Nd5 {[%clk 0:03:01.3]} 3. d4 {[%clk 0:03:04.8]} 3... d6 {[%clk 0:03:02]} 4.
c4 {[%clk 0:03:06.7]} 4... Nb6 {[%clk 0:03:02.7]} 5. exd6 {[%clk 0:03:08.6]}
5... cxd6 {[%clk 0:03:03.3]} 6. Nc3 {[%clk 0:03:10.5]} 6... g6 {[%clk
0:03:04.7]} 7. Be3 {[%clk 0:03:12]} 7... Bg7 {[%clk 0:03:06.2]} 8. Rc1 {[%clk
0:03:13.6]} 8... O-O {[%clk 0:03:07.6]} 9. b3 {[%clk 0:03:15.1]} 9... e5 {[%clk
0:03:06.3]} 10. dxe5 {[%clk 0:03:15.9]} 10... dxe5 {[%clk 0:03:07.1]} 11. Qxd8
{[%clk 0:03:17.8]} 11... Rxd8 {[%clk 0:03:08.2]} 12. c5 {[%clk 0:03:18.9]} 12...
Nd5 {[%clk 0:03:00.2]} 13. Rd1 {[%clk 0:03:19.1]} 13... Be6 {[%clk 0:02:58.1]}
14. Bc4 {[%clk 0:03:18.5]} 14... e4 {[%clk 0:02:05.4]} 15. Nxd5 {[%clk
0:03:17.8]} 15... Nc6 {[%clk 0:02:06.2]} 16. Ne2 {[%clk 0:03:13.7]} 16... Ne5
{[%clk 0:02:04.1]} 17. O-O {[%clk 0:02:43.2]} 17... Nd3 {[%clk 0:01:59.8]} 18.
Nef4 {[%clk 0:02:25.7]} 18... Nxf4 {[%clk 0:01:40.3]} 19. Bxf4 {[%clk
0:02:27.6]} 19... Rac8 {[%clk 0:01:38.1]} 20. Ne7+ {[%clk 0:02:28.1]} 1-0

[Event "*** Titled Tuesday Blitz"]
[Site "Chess.com"]
[Date "2019.11.05"]
[Round "4"]
[White "ChessQueen"]
[Black "boasovietica"]
[Result "1-0"]
[WhiteElo "2673"]
[BlackElo "2442"]
[TimeControl "180+2"]
[EndTime "13:47:21 PST"]
[Termination "ChessQueen won by resignation"]

1. Nf3 {[%clk 0:03:01.9]} 1... c5 {[%clk 0:02:59.6]} 2. e4 {[%clk 0:03:02.3]}
2... g6 {[%clk 0:02:59.5]} 3. c3 {[%clk 0:03:02.3]} 3... d5 {[%clk 0:02:59.8]}
4. exd5 {[%clk 0:03:01.2]} 4... Qxd5 {[%clk 0:03:00.3]} 5. d4 {[%clk 0:03:02.5]}
5... cxd4 {[%clk 0:03:01.4]} 6. cxd4 {[%clk 0:02:59.3]} 6... Nf6 {[%clk
0:03:02.5]} 7. Nc3 {[%clk 0:03:00]} 7... Qd8 {[%clk 0:03:03.8]} 8. Bc4 {[%clk
0:02:55.2]} 8... Bg7 {[%clk 0:03:03.8]} 9. Ne5 {[%clk 0:02:56]} 9... O-O {[%clk
0:03:02.8]} 10. O-O {[%clk 0:02:54.4]} 10... Nc6 {[%clk 0:03:00.6]} 11. Nxc6
{[%clk 0:02:53]} 11... bxc6 {[%clk 0:02:59.4]} 12. h3 {[%clk 0:02:49.9]} 12...
Rb8 {[%clk 0:02:57.9]} 13. Re1 {[%clk 0:02:50.4]} 13... e6 {[%clk 0:02:35]} 14.
b3 {[%clk 0:02:48.4]} 14... Qc7 {[%clk 0:02:28.1]} 15. Qf3 {[%clk 0:02:37.9]}
15... Ra8 {[%clk 0:02:16.2]} 16. Bf4 {[%clk 0:02:36.2]} 16... Qd7 {[%clk
0:02:10.2]} 17. Be5 {[%clk 0:02:33.6]} 17... Nd5 {[%clk 0:02:07.3]} 18. Ne4
{[%clk 0:02:32.3]} 18... a5 {[%clk 0:01:45.3]} 19. Bxd5 {[%clk 0:02:28]} 19...
cxd5 {[%clk 0:01:37.9]} 20. Nf6+ {[%clk 0:02:28.6]} 20... Bxf6 {[%clk
0:01:34.4]} 21. Qxf6 {[%clk 0:02:29.7]} 1-0